bitfinex-derivatives/quotes_BTCF0:USTF0_20241109
["timestamp","ask_amount","ask_price","bid_price","bid_amount"]
[1731185466945,0.27027563,76297.0,76296.0,0.065504]
[1731185468151,0.19737401,76297.0,76296.0,0.065504]
[1731185468351,0.27027563,76297.0,76296.0,0.065504]
[1731185468648,0.07290162,76297.0,76296.0,0.065504]
[1731185468948,0.26931306,76297.0,76296.0,0.065504]
[1731185470846,0.19641144,76297.0,76296.0,0.065504]
[1731185471050,0.19641144,76297.0,76296.0,0.130404]
[1731185471358,0.0061,76303.0,76296.0,0.130404]
[1731185471359,0.0061,76303.0,76302.0,0.065499]
[1731185471657,0.07290162,76309.0,76308.0,0.065494]
[1731185471959,0.27057063,76309.0,76308.0,0.065494]
[1731185472752,0.19766901,76309.0,76308.0,0.065494]
[1731185473055,0.07290162,76309.0,76308.0,0.065494]
[1731185473361,0.26899387,76309.0,76308.0,0.065494]
[1731185474655,0.26899387,76309.0,76308.0,0.10470307]
[1731185476757,0.26899387,76309.0,76308.0,0.065494]
[1731185477261,0.26899387,76309.0,76308.0,0.10470307]
[1731185478651,0.19609225,76309.0,76308.0,0.10470307]
[1731185478862,0.19609225,76309.0,76308.0,0.065494]
[1731185479059,0.19609521,76313.0,76308.0,0.09681482]
[1731185479261,0.07290162,76314.0,76308.0,0.03132082]
[1731185479449,0.07290162,76314.0,76313.0,0.06549]
[1731185479855,0.26856586,76314.0,76313.0,0.06549]
[1731185484265,0.26856586,76314.0,76313.0,0.09684548]
[1731185487668,0.19566424,76314.0,76313.0,0.09684548]
[1731185488057,0.19633937,76317.0,76314.0,0.065489]
[1731185488263,0.19633937,76317.0,76309.0,0.40080907]
[1731185488264,0.17058162,76318.0,76316.0,0.065487]
[1731185488460,0.17058162,76318.0,76317.0,0.065486]
[1731185488852,0.36674896,76318.0,76317.0,0.065486]
[1731185490461,0.26906896,76318.0,76317.0,0.065486]
[1731185493776,0.19616734,76318.0,76317.0,0.065486]
[1731185497375,0.19616734,76318.0,76317.0,0.10469507]
[1731185498469,0.19616734,76318.0,76317.0,0.065486]
[1731185501372,0.21477599,76318.0,76317.0,0.065486]
[1731185502077,0.19616734,76318.0,76317.0,0.065486]
[1731185504277,0.19616734,76318.0,76317.0,0.10471714]
[1731185506883,0.21445788,76318.0,76317.0,0.065486]
[1731185508879,0.19616734,76318.0,76317.0,0.10471714]
[1731185509186,0.19616734,76318.0,76317.0,0.065486]
[1731185512379,0.19616734,76318.0,76317.0,0.15321854]
[1731185515986,0.19616734,76318.0,76317.0,0.51401854]
[1731185517171,0.19616734,76318.0,76317.0,0.51391941]
[1731185517374,0.19616734,76318.0,76317.0,0.58682103]
[1731185517982,0.2144944,76318.0,76317.0,0.58682103]
[1731185518584,0.2144944,76318.0,76317.0,0.22602103]
[1731185519406,0.2144944,76318.0,76317.0,0.58682103]
[1731185519883,0.2143609,76318.0,76317.0,0.58682103]
[1731185520082,0.19616734,76318.0,76317.0,0.58682103]
[1731185520386,0.19535825,76324.0,76317.0,0.58682103]
[1731185520590,0.19535825,76324.0,76323.0,0.065481]
[1731185520779,0.3608,76330.0,76329.0,0.065476]
[1731185521175,0.55848452,76330.0,76329.0,0.065476]
[1731185522190,0.55848452,76330.0,76329.0,0.11782805]
[1731185522781,0.55848452,76330.0,76329.0,0.065476]
[1731185526591,0.63138614,76330.0,76329.0,0.065476]
[1731185528486,0.55848452,76330.0,76329.0,0.065476]
[1731185528883,0.19768452,76330.0,76329.0,0.065476]
[1731185529079,0.19768452,76330.0,76329.0,0.09629157]
[1731185529283,0.0306,76332.0,76330.0,0.065475]
[1731185529284,0.19619913,76331.0,76330.0,0.065475]
[1731185529483,0.0306,76332.0,76325.0,0.47361525]
[1731185529683,0.0306,76332.0,76331.0,0.065474]
[1731185530186,0.22666002,76332.0,76331.0,0.065474]
[1731185531893,0.19606002,76332.0,76331.0,0.065474]
[1731185532290,0.0061,76337.0,76335.0,0.065471]
[1731185532291,0.19546494,76336.0,76335.0,0.065471]
[1731185532595,0.00196607,76338.0,76337.0,0.065469]
[1731185533091,0.19886295,76338.0,76337.0,0.065469]
[1731185534993,0.19886295,76338.0,76337.0,0.11782105]
[1731185535388,0.19886295,76338.0,76337.0,0.065469]
[1731185536390,0.19886295,76338.0,76337.0,0.09640425]
[1731185537892,0.19886295,76338.0,76337.0,0.16930587]
[1731185539402,0.19886295,76338.0,76337.0,0.14867742]
[1731185540487,0.19886295,76338.0,76337.0,0.09640425]
[1731185554312,0.19886295,76338.0,76337.0,0.13557775]
[1731185554704,0.19886295,76338.0,76337.0,0.09640425]
[1731185565920,0.62513095,76338.0,76337.0,0.03093525]
[1731185566215,0.62513095,76338.0,76323.0,0.09096812]
[1731185566216,0.06547,76336.0,76334.0,0.03928622]
[1731185566517,0.06547,76336.0,76326.0,0.05235983]
[1731185566518,0.07290162,76334.0,76326.0,0.05235983]
[1731185566709,0.3608,76327.0,76326.0,0.05235983]
[1731185566908,0.3608,76327.0,76325.0,0.05235983]
[1731185566909,0.065478,76326.0,76325.0,0.05235983]
[1731185567116,0.065479,76325.0,76324.0,0.05235983]
[1731185567521,0.26079381,76325.0,76324.0,0.05235983]
[1731185567912,0.19531481,76325.0,76323.0,0.065481]
[1731185568113,0.06548,76324.0,76323.0,0.065481]
[1731185568510,0.26265188,76324.0,76323.0,0.065481]
[1731185572221,0.26265188,76324.0,76323.0,0.09622269]
[1731185576222,0.19717188,76324.0,76323.0,0.09622269]
[1731185576514,0.19671069,76328.0,76323.0,0.03074169]
[1731185576717,0.19671069,76328.0,76322.0,0.3608]
[1731185576718,0.19671069,76328.0,76327.0,0.065478]
[1731185576922,0.19607964,76329.0,76328.0,0.065477]
[1731185577122,0.162114,76332.0,76327.0,0.07290162]
[1731185577419,0.3608,76328.0,76322.0,0.03071964]
[1731185577629,0.07290162,76323.0,76315.0,0.06745234]
[1731185577810,0.3608,76328.0,76315.0,0.00196534]
[1731185577811,0.06548,76324.0,76315.0,0.00196534]
[1731185578010,0.19562711,76322.0,76316.0,0.065486]
[1731185578216,0.02001588,76321.0,76316.0,0.065486]
[1731185578422,0.02001588,76320.0,76316.0,0.065486]
[1731185578624,0.02001588,76319.0,76316.0,0.065486]
[1731185578918,0.21541653,76318.0,76316.0,0.065486]
[1731185579126,0.02001588,76317.0,76316.0,0.065486]
[1731185579320,0.19540065,76319.0,76316.0,0.065486]
[1731185579517,0.13838162,76324.0,76316.0,0.065486]
[1731185579518,0.19540065,76317.0,76316.0,0.065486]
[1731185579825,0.13838162,76324.0,76316.0,0.065486]
[1731185579826,0.19540065,76323.0,76316.0,0.065486]
[1731185580126,0.19548874,76317.0,76316.0,0.065486]
[1731185580327,0.19548874,76323.0,76316.0,0.065486]
[1731185580526,0.13838162,76324.0,76316.0,0.065486]
[1731185580818,0.21544055,76323.0,76316.0,0.065486]
[1731185581025,0.01995181,76322.0,76316.0,0.065486]
[1731185581230,0.01995181,76321.0,76316.0,0.065486]
[1731185581427,0.01995181,76320.0,76316.0,0.065486]
[1731185581630,0.01995181,76319.0,76316.0,0.065486]
[1731185581829,0.19615091,76319.0,76316.0,0.065486]
[1731185582032,0.19770991,76320.0,76318.0,0.07290162]
[1731185582225,0.01978158,76319.0,76318.0,0.07290162]
[1731185582618,0.21749149,76319.0,76318.0,0.07290162]
[1731185582823,0.01978158,76319.0,76318.0,0.07290162]
[1731185583031,0.21676409,76319.0,76318.0,0.07290162]
[1731185583624,0.21676409,76319.0,76316.0,0.065486]
[1731185583831,0.19698251,76319.0,76316.0,0.065486]
[1731185584131,0.19584353,76323.0,76316.0,0.065486]
[1731185584328,0.01992414,76322.0,76316.0,0.065486]
[1731185584526,0.01992414,76321.0,76316.0,0.065486]
[1731185584729,0.01992414,76320.0,76316.0,0.065486]
[1731185585130,0.19523575,76319.0,76316.0,0.065486]
[1731185585434,0.19523575,76321.0,76316.0,0.065486]
[1731185585632,0.01992439,76320.0,76316.0,0.065486]
[1731185585830,0.3608,76323.0,76316.0,0.065486]
[1731185586032,0.19685812,76319.0,76316.0,0.065486]
[1731185586234,0.01990878,76318.0,76316.0,0.065486]
[1731185586430,0.01990878,76317.0,76316.0,0.065486]
[1731185586630,0.19685812,76317.0,76316.0,0.065486]
[1731185586834,0.01990878,76317.0,76316.0,0.065486]
[1731185587230,0.19728703,76317.0,76316.0,0.065486]
[1731185587630,0.01990878,76317.0,76316.0,0.065486]
[1731185588129,0.21637852,76317.0,76316.0,0.065486]
[1731185591335,0.21637852,76317.0,76316.0,0.13838762]
[1731185591537,0.01990878,76317.0,76316.0,0.13838762]
[1731185591837,0.09664,76331.0,76316.0,0.15991263]
[1731185592029,0.09664,76331.0,76325.0,0.065479]
[1731185592429,0.1952594,76326.0,76325.0,0.065479]
[1731185592639,0.1952594,76330.0,76325.0,0.065479]
[1731185592843,0.01916923,76326.0,76325.0,0.065479]
[1731185593033,0.01916923,76329.0,76328.0,0.065477]
[1731185593234,0.01916923,76329.0,76328.0,0.13837862]
[1731185593531,0.21463718,76329.0,76328.0,0.13837862]
[1731185593735,0.0061,76337.0,76328.0,0.19064465]
[1731185594039,0.0061,76337.0,76336.0,0.13837162]
[1731185594241,0.00196607,76338.0,76337.0,0.065469]
[1731185594630,0.19733288,76338.0,76337.0,0.065469]
[1731185602644,0.19536681,76338.0,76337.0,0.065469]
[1731185603042,0.19718263,76341.0,76337.0,0.065469]
[1731185603243,0.19718263,76341.0,76337.0,0.03198669]
[1731185603547,0.07290162,76342.0,76338.0,0.065468]
[1731185603742,0.19718263,76341.0,76338.0,0.065468]
[1731185603951,0.07290162,76339.0,76338.0,0.065468]
[1731185604249,0.26928795,76339.0,76338.0,0.065468]
[1731185612051,0.63008795,76339.0,76338.0,0.065468]
[1731185614553,0.26928795,76339.0,76338.0,0.065468]
[1731185614753,0.63008795,76339.0,76338.0,0.065468]
[1731185621556,0.66082324,76339.0,76338.0,0.065468]
[1731185621860,0.72629024,76339.0,76338.0,0.065468]
[1731185622056,0.72629024,76339.0,76338.0,0.03459289]
[1731185622456,0.72629024,76339.0,76337.0,0.03197724]
[1731185622457,0.065468,76338.0,76337.0,0.03197724]
[1731185622657,0.09620329,76338.0,76335.0,0.09560581]
[1731185622962,0.03073529,76337.0,76336.0,0.06547]
[1731185623356,0.22716879,76337.0,76336.0,0.06547]
[1731185623551,0.29263779,76337.0,76336.0,0.06547]
[1731185624755,0.2619025,76337.0,76336.0,0.06547]
[1731185625060,0.6227025,76337.0,76336.0,0.06547]
[1731185626255,0.64085258,76337.0,76336.0,0.06547]
[1731185627363,0.6227025,76337.0,76336.0,0.06547]
[1731185630164,0.6227025,76337.0,76336.0,0.09691243]
[1731185630864,0.2619025,76337.0,76336.0,0.09691243]
[1731185631165,0.6227025,76337.0,76336.0,0.09691243]
[1731185631954,0.65354677,76337.0,76336.0,0.09691243]
[1731185632367,0.6227025,76337.0,76336.0,0.09691243]
[1731185632953,0.2619025,76337.0,76336.0,0.09691243]
[1731185633161,0.6227025,76337.0,76336.0,0.09691243]
[1731185633359,0.2619025,76337.0,76336.0,0.09691243]
[1731185633568,0.6227025,76337.0,76336.0,0.09691243]
[1731185635662,0.65209298,76337.0,76336.0,0.09691243]
[1731185636562,0.6227025,76337.0,76336.0,0.09691243]
[1731185640164,0.6227025,76337.0,76336.0,0.03144243]
[1731185640368,0.6227025,76337.0,76335.0,0.03013581]
[1731185640674,0.6227025,76337.0,76336.0,0.06547]
[1731185647376,0.65211876,76337.0,76336.0,0.06547]
[1731185652175,0.065475,76330.0,76329.0,0.03144695]
[1731185652377,0.065477,76329.0,76327.0,0.065477]
[1731185652779,0.19585705,76328.0,76327.0,0.065477]
[1731185653782,0.19585705,76328.0,76327.0,0.09745502]
[1731185654377,0.26133405,76328.0,76327.0,0.09745502]
[1731185654786,0.065477,76328.0,76327.0,0.09745502]
[1731185655075,0.26316126,76328.0,76327.0,0.09745502]
[1731185678611,0.62396126,76328.0,76327.0,0.09745502]
[1731185678807,0.26316126,76328.0,76327.0,0.09745502]
[1731185679000,0.62396126,76328.0,76327.0,0.09745502]
[1731185679207,0.62396126,76328.0,76327.0,0.03197802]
[1731185679512,0.06548,76324.0,76323.0,0.19234931]
[1731185679711,0.06548,76324.0,76323.0,0.28128855]
[1731185680006,0.26118192,76324.0,76323.0,0.21595601]
[1731185680210,0.26118192,76324.0,76323.0,0.28145268]
[1731185680411,0.26118192,76324.0,76323.0,0.31249846]
[1731185681517,0.26118192,76324.0,76323.0,0.22355922]
[1731185683411,0.26118192,76324.0,76323.0,0.15806255]
[1731185684405,0.26118192,76324.0,76323.0,0.31249236]
[1731185686315,0.26118192,76324.0,76323.0,0.22355922]
[1731185687418,0.26118192,76324.0,76323.0,0.15806255]
[1731185688116,0.26118192,76324.0,76323.0,0.12666255]
[1731185700621,0.19570192,76324.0,76323.0,0.12666255]
[1731185700823,0.19570192,76324.0,76323.0,0.1921448]
[1731185701419,0.19570192,76324.0,76323.0,0.28021811]
[1731185705329,0.19570192,76324.0,76323.0,0.21473586]
[1731185706924,0.19570192,76324.0,76323.0,0.09655847]
[1731185707127,0.26118192,76324.0,76323.0,0.03104578]
[1731185707328,0.22600192,76324.0,76322.0,0.03930906]
[1731185707627,0.07290162,76323.0,76321.0,0.03930906]
[1731185707828,0.07290162,76323.0,76318.0,0.11789708]
[1731185707829,0.065482,76322.0,76320.0,0.03930906]
[1731185708033,0.07290162,76321.0,76320.0,0.03930906]
[1731185708423,0.27016183,76321.0,76320.0,0.03930906]
[1731185709426,0.27016183,76321.0,76319.0,0.13493586]
[1731185710432,0.27016183,76321.0,76320.0,0.065484]
[1731185714136,0.33564483,76321.0,76320.0,0.065484]
[1731185718048,0.69644483,76321.0,76320.0,0.065484]
[1731185724561,0.62354321,76321.0,76320.0,0.065484]
[1731185725451,0.62354321,76321.0,76320.0,0.10476885]
[1731185729467,0.62354321,76321.0,76320.0,0.065484]
[1731185735566,0.62354321,76321.0,76320.0,0.21944599]
[1731185735764,0.62354321,76321.0,76320.0,0.21945384]
[1731185736163,0.62354321,76321.0,76320.0,0.13099669]
[1731185737461,0.62354321,76321.0,76320.0,0.065484]
[1731185742974,0.62354321,76321.0,76320.0,0.11790143]
[1731185743166,0.62354321,76321.0,76320.0,0.065484]
[1731185745272,0.62354321,76321.0,76320.0,0.21966662]
[1731185745471,0.62354321,76321.0,76320.0,0.13099669]
[1731185745664,0.62354321,76321.0,76320.0,0.21962121]
[1731185746373,0.62354321,76321.0,76320.0,0.13099669]
[1731185746970,0.62354321,76321.0,76320.0,0.065484]
[1731185747670,0.62354321,76321.0,76320.0,0.13099669]
[1731185748583,0.62354321,76321.0,76320.0,0.065484]
[1731185751782,0.62354321,76321.0,76320.0,0.13099669]
[1731185753372,0.62354321,76321.0,76320.0,0.21915278]
[1731185753573,0.62354321,76321.0,76320.0,0.065484]
[1731185753871,0.62354321,76321.0,76320.0,0.21917237]
[1731185754181,0.62354321,76321.0,76320.0,0.21910298]
[1731185754380,0.62354321,76321.0,76320.0,0.21910716]
[1731185754688,0.62354321,76321.0,76320.0,0.065484]
[1731185756076,0.26274321,76321.0,76320.0,0.065484]
[1731185756778,0.33564483,76321.0,76320.0,0.065484]
[1731185756979,0.26274321,76321.0,76320.0,0.065484]
[1731185757378,0.19726021,76321.0,76320.0,0.065484]
[1731185759588,0.19726021,76321.0,76320.0,0.11790115]
[1731185760979,0.19726021,76321.0,76320.0,0.065484]
[1731185764290,0.065471,76335.0,76328.0,0.065477]
[1731185764488,0.0061,76336.0,76330.0,0.065475]
[1731185764886,0.55657275,76331.0,76330.0,0.065475]
[1731185766792,0.62947437,76331.0,76330.0,0.065475]
[1731185768591,0.62947437,76331.0,76330.0,0.09691779]
[1731185768592,0.26867437,76331.0,76330.0,0.09691779]
[1731185768891,0.62947437,76331.0,76330.0,0.09691779]
[1731185769195,0.26867437,76331.0,76330.0,0.09691779]
[1731185769383,0.62947437,76331.0,76330.0,0.09691779]
[1731185771693,0.62947437,76331.0,76330.0,0.13617108]
[1731185772080,0.62947437,76331.0,76330.0,0.09691779]
[1731185772297,0.55657275,76331.0,76330.0,0.09691779]
[1731185772790,0.19577275,76331.0,76330.0,0.09691779]
[1731185772992,0.0061,76336.0,76330.0,0.09691779]
[1731185773187,0.3669,76340.0,76339.0,0.065467]
[1731185773385,0.3608,76340.0,76339.0,0.065467]
[1731185773695,0.55623335,76340.0,76339.0,0.065467]
[1731185775798,0.0061,76347.0,76346.0,0.065461]
[1731185776002,0.0019657,76352.0,76350.0,0.065458]
[1731185776299,0.0019657,76352.0,76351.0,0.07290162]
[1731185776600,0.19841451,76352.0,76351.0,0.07290162]
[1731185784095,0.19841451,76352.0,76351.0,0.10462403]
[1731185785301,0.19644881,76352.0,76351.0,0.03172241]
[1731185785495,0.19644881,76352.0,76350.0,0.21126124]
[1731185785691,0.19765777,76356.0,76355.0,0.065454]
[1731185785893,0.4289,76364.0,76355.0,0.07290162]
[1731185786100,0.3978,76364.0,76363.0,0.065447]
[1731185786398,0.58935777,76364.0,76363.0,0.065447]
[1731185808330,0.65480377,76364.0,76363.0,0.065447]
[1731185814116,0.68456481,76364.0,76363.0,0.065447]
[1731185819723,0.65480377,76364.0,76363.0,0.065447]
[1731185822432,0.62390377,76364.0,76363.0,0.065447]
[1731185822729,0.55845777,76364.0,76363.0,0.17754987]
[1731185823023,0.55845777,76364.0,76363.0,0.13834862]
[1731185823416,0.55845777,76364.0,76363.0,0.065447]
[1731185828027,0.62390377,76364.0,76363.0,0.065447]
[1731185828416,0.55845777,76364.0,76362.0,0.03012953]
[1731185828618,0.065447,76363.0,76362.0,0.03012953]
[1731185829027,0.26254248,76363.0,76362.0,0.09557753]
[1731185830217,0.26254248,76363.0,76362.0,0.13485113]
[1731185834723,0.26254248,76363.0,76362.0,0.09557753]
[1731185834724,0.29329615,76363.0,76362.0,0.09557753]
[1731185836725,0.29431575,76363.0,76362.0,0.09557753]
[1731185837319,0.29431575,76363.0,76356.0,0.0325]
[1731185837320,0.065452,76359.0,76358.0,0.065451]
[1731185837530,0.065453,76356.0,76355.0,0.03012953]
[1731185837736,0.426253,76356.0,76355.0,0.09558353]
[1731185837925,0.62189493,76356.0,76355.0,0.09558353]
[1731185838341,0.65343324,76356.0,76355.0,0.09558353]
[1731185838635,0.62189493,76356.0,76355.0,0.09558353]
[1731185839633,0.26109493,76356.0,76355.0,0.09558353]
[1731185843229,0.19564193,76356.0,76355.0,0.09558353]
[1731185843435,0.19564193,76356.0,76355.0,0.16848515]
[1731185845933,0.3608,76357.0,76355.0,0.10303115]
[1731185846129,0.3608,76357.0,76356.0,0.10471602]
[1731185846331,0.3608,76357.0,76356.0,0.065453]
[1731185856935,0.3608,76357.0,76356.0,0.11772133]
[1731185859137,0.3608,76357.0,76356.0,0.065453]
[1731185863147,0.3608,76357.0,76356.0,0.11781717]
[1731185865940,0.3608,76357.0,76356.0,0.065453]
[1731185866647,0.3608,76357.0,76356.0,0.11781717]
[1731185867050,0.3608,76360.0,76356.0,0.05236417]
[1731185867349,0.55673396,76360.0,76359.0,0.10473172]
[1731185867652,0.62218296,76360.0,76359.0,0.10473172]
[1731185867948,0.62218296,76360.0,76359.0,0.06545]
[1731185874749,0.55673396,76360.0,76359.0,0.09645056]
[1731185877060,0.58916489,76360.0,76359.0,0.09645056]
[1731185879962,0.55673396,76360.0,76359.0,0.13574154]
[1731185882968,0.55673396,76360.0,76359.0,0.09645056]
[1731185883162,0.62218296,76360.0,76359.0,0.09645056]
[1731185884165,0.26138296,76360.0,76359.0,0.09645056]
[1731185884366,0.62218296,76360.0,76359.0,0.09645056]
[1731185886678,0.065451,76358.0,76357.0,0.05236417]
[1731185886876,0.07290162,76358.0,76355.0,0.065454]
[1731185887077,0.26946816,76358.0,76355.0,0.065454]
[1731185887688,0.065453,76356.0,76355.0,0.09724191]
[1731185888181,0.26103583,76356.0,76355.0,0.09724191]
[1731185889181,0.26103583,76356.0,76355.0,0.03178791]
[1731185889383,0.19558283,76356.0,76352.0,0.03929394]
[1731185889583,0.065455,76353.0,76352.0,0.03929394]
[1731185889786,0.065455,76353.0,76352.0,0.10474994]
[1731185889978,0.26242111,76353.0,76352.0,0.10474994]
[1731185890984,0.26242111,76353.0,76352.0,0.09622042]
[1731185895878,0.72670773,76353.0,76350.0,0.05237242]
[1731185896083,0.065458,76350.0,76349.0,0.05237242]
[1731185896286,0.065459,76349.0,76348.0,0.05237242]
[1731185896482,0.13836062,76349.0,76348.0,0.05237242]
[1731185896679,0.33528393,76349.0,76348.0,0.05237242]
[1731185896883,0.26982493,76349.0,76348.0,0.05237728]
[1731185897083,0.33528393,76349.0,76348.0,0.05237728]
[1731185897278,0.06546,76348.0,76347.0,0.05237728]
[1731185897690,0.26111052,76348.0,76347.0,0.05237728]
[1731185897888,0.19565052,76348.0,76346.0,0.05237728]
[1731185898089,0.06546,76347.0,76346.0,0.05237728]
[1731185898284,0.19565052,76348.0,76343.0,0.05237728]
[1731185898490,0.3608,76344.0,76341.0,0.05237728]
[1731185898690,0.3608,76344.0,76343.0,0.03926626]
[1731185898995,0.3608,76344.0,76339.0,0.065467]
[1731185898996,0.26162528,76343.0,76342.0,0.03926626]
[1731185899288,0.065466,76341.0,76340.0,0.03926626]
[1731185899496,0.13836762,76341.0,76340.0,0.03926626]
[1731185899691,0.33477617,76341.0,76340.0,0.03926626]
[1731185899996,0.065466,76340.0,76339.0,0.03926626]
[1731185900292,0.26271689,76340.0,76339.0,0.03926626]
[1731185900881,0.065468,76338.0,76337.0,0.0318819]
[1731185901089,0.065469,76337.0,76336.0,0.05237728]
[1731185901398,0.065469,76337.0,76333.0,0.097072]
[1731185901399,0.065471,76335.0,76334.0,0.05237728]
[1731185901700,0.2613971,76335.0,76334.0,0.05237728]
[1731185901893,0.2613971,76335.0,76334.0,0.065472]
[1731185902091,0.2613971,76335.0,76334.0,0.10468719]
[1731185902595,0.2613971,76335.0,76334.0,0.065472]
[1731185911202,0.1959261,76335.0,76334.0,0.065472]
[1731185911700,0.1954463,76336.0,76334.0,0.49917362]
[1731185911911,0.0061,76342.0,76340.0,0.065466]
[1731185912200,0.426262,76346.0,76341.0,0.0325]
[1731185912398,0.3608,76346.0,76345.0,0.07290162]
[1731185912799,0.55783739,76346.0,76345.0,0.07290162]
[1731185914303,0.55783739,76346.0,76344.0,0.065463]
[1731185915407,0.62329939,76346.0,76344.0,0.065463]
[1731185917117,0.62329939,76346.0,76344.0,0.09723427]
[1731185923096,0.62329939,76346.0,76344.0,0.03177127]
[1731185923297,0.62329939,76346.0,76345.0,0.065462]
[1731185924702,0.55783739,76346.0,76345.0,0.065462]
[1731185924909,0.55783739,76346.0,76345.0,0.10463172]
[1731185925113,0.55783739,76346.0,76345.0,0.065462]
[1731185934113,0.55783739,76346.0,76345.0,0.11783928]
[1731185934314,0.19703739,76346.0,76345.0,0.065462]
[1731185934618,0.19647808,76352.0,76344.0,0.43446162]
[1731185934822,0.19647808,76352.0,76351.0,0.065457]
[1731185935118,0.1021,76353.0,76344.0,0.43370162]
[1731185935119,0.096,76353.0,76352.0,0.065456]
[1731185935616,0.29283481,76353.0,76352.0,0.065456]
[1731185937923,0.19683481,76353.0,76352.0,0.065456]
[1731185938106,0.19683481,76353.0,76352.0,0.09623021]
[1731185940112,0.3608,76355.0,76353.0,0.065455]
[1731185940113,0.19532261,76354.0,76353.0,0.065455]
[1731185940323,0.3608,76355.0,76354.0,0.065454]
[1731185940724,0.55612261,76355.0,76354.0,0.065454]
[1731185950430,0.55612261,76355.0,76354.0,0.10470659]
[1731185953232,0.19532261,76355.0,76354.0,0.065454]
[1731185953622,0.3608,76356.0,76355.0,0.065454]
[1731185953927,0.55637263,76356.0,76355.0,0.10470919]
[1731185954126,0.19557263,76356.0,76355.0,0.10470919]
[1731185954317,0.19557263,76356.0,76355.0,0.065454]
[1731185954318,0.55637263,76356.0,76355.0,0.065454]
[1731185954523,0.3608,76356.0,76355.0,0.065454]
[1731185954826,0.55824157,76356.0,76355.0,0.10470685]
[1731185959223,0.55824157,76356.0,76355.0,0.065454]
[1731185960029,0.19744157,76356.0,76355.0,0.065454]
[1731185960425,0.19611705,76362.0,76355.0,0.065454]
[1731185960632,0.3608,76358.0,76357.0,0.07290162]
[1731185960837,0.3608,76358.0,76357.0,0.13835362]
[1731185961020,0.55691705,76358.0,76357.0,0.13835362]
[1731185961224,0.55691705,76358.0,76357.0,0.1776138]
[1731185961432,0.55691705,76358.0,76357.0,0.13835362]
[1731185961727,0.55691705,76358.0,76357.0,0.1776138]
[1731185962229,0.55691705,76358.0,76357.0,0.13835362]
[1731185962535,0.55691705,76358.0,76357.0,0.065452]
[1731185963723,0.55691705,76358.0,76357.0,0.0973441]
[1731185969831,0.55691705,76358.0,76357.0,0.17024572]
[1731185970034,0.55691705,76358.0,76357.0,0.0973441]
[1731185971042,0.55691705,76358.0,76357.0,0.13659857]
[1731185973738,0.62981867,76358.0,76357.0,0.13659857]
[1731185974035,0.62981867,76358.0,76355.0,0.05234784]
[1731185974240,0.097852,76357.0,76356.0,0.03926489]
[1731185974440,0.097852,76357.0,76355.0,0.03926489]
[1731185974639,0.29341198,76357.0,76354.0,0.10471889]
[1731185975939,0.29341198,76357.0,76355.0,0.03926489]
[1731185977046,0.29341198,76357.0,76354.0,0.10471889]
[1731185977247,0.29341198,76357.0,76355.0,0.03926489]
[1731185977439,0.03051803,76356.0,76354.0,0.065454]
[1731185977749,0.19642894,76355.0,76354.0,0.065454]
[1731185978137,0.19642894,76356.0,76354.0,0.065454]
[1731185978338,0.097852,76357.0,76354.0,0.065454]
[1731185978545,0.03053212,76356.0,76354.0,0.065454]
[1731185978737,0.065454,76355.0,76354.0,0.065454]
[1731185979137,0.29230862,76355.0,76354.0,0.065454]
[1731185981143,0.65310862,76355.0,76354.0,0.065454]
[1731185982838,0.65320909,76355.0,76354.0,0.065454]
[1731185983551,0.62257357,76355.0,76354.0,0.065454]
[1731185984549,0.62257357,76355.0,76354.0,0.10471889]
[1731185985143,0.26177357,76355.0,76354.0,0.10471889]
[1731185985347,0.62257357,76355.0,76354.0,0.10471889]
[1731185987742,0.55711957,76355.0,76354.0,0.10471889]
[1731185988048,0.55711957,76355.0,76354.0,0.065454]
[1731186000855,0.55711957,76355.0,76354.0,0.11780184]
[1731186002755,0.19631957,76355.0,76354.0,0.065454]
[1731186002961,0.19631957,76355.0,76354.0,0.13835562]
[1731186003159,0.19628632,76359.0,76358.0,0.065451]
[1731186003355,0.3608,76363.0,76358.0,0.07290162]
[1731186003551,0.3608,76363.0,76362.0,0.065448]
[1731186003863,0.55799669,76363.0,76362.0,0.065448]
[1731186004158,0.55799669,76363.0,76362.0,0.13834962]
[1731186004360,0.55799669,76363.0,76362.0,0.17762238]
[1731186004559,0.55799669,76363.0,76362.0,0.13834962]
[1731186004757,0.55799669,76363.0,76362.0,0.1776019]
[1731186005154,0.55799669,76363.0,76362.0,0.13834962]
[1731186007556,0.55799669,76363.0,76362.0,0.10468167]
[1731186008066,0.55799669,76363.0,76361.0,0.03923367]
[1731186008360,0.07290162,76362.0,76357.0,0.03923367]
[1731186008560,0.07290162,76358.0,76356.0,0.10468567]
[1731186008752,0.13835262,76358.0,76356.0,0.10468567]
[1731186008953,0.19720166,76357.0,76356.0,0.065452]
[1731186013866,0.26265366,76357.0,76356.0,0.065452]
[1731186015365,0.065455,76353.0,76351.0,0.065457]
[1731186015564,0.065456,76352.0,76351.0,0.065457]
[1731186015865,0.26312614,76352.0,76351.0,0.065457]
[1731186016068,0.065456,76352.0,76351.0,0.065457]
[1731186016260,0.065459,76349.0,76348.0,0.03991367]
[1731186016460,0.13836062,76349.0,76346.0,0.10469467]
[1731186016759,0.42626,76347.0,76346.0,0.03096853]
[1731186016967,0.3608,76347.0,76341.0,0.065465]
[1731186017264,0.065465,76342.0,76341.0,0.065465]
[1731186017762,0.065466,76341.0,76337.0,0.03923367]
[1731186017954,0.3608,76338.0,76337.0,0.065469]
[1731186018159,0.3608,76338.0,76337.0,0.10473194]
[1731186018365,0.5562782,76338.0,76337.0,0.10473194]
[1731186018777,0.5562782,76338.0,76337.0,0.065469]
[1731186024467,0.5562782,76338.0,76337.0,0.11775232]
[1731186024863,0.5562782,76338.0,76337.0,0.065469]
[1731186026762,0.1954782,76338.0,76337.0,0.065469]
[1731186026959,0.46262,76346.0,76345.0,0.065462]
[1731186027174,0.45652,76346.0,76345.0,0.13836362]
[1731186027363,0.65350676,76346.0,76345.0,0.13836362]
[1731186029870,0.65350676,76346.0,76345.0,0.17755301]
[1731186030170,0.65350676,76346.0,76345.0,0.13836362]
[1731186030777,0.65350676,76346.0,76345.0,0.17755301]
[1731186031377,0.65350676,76346.0,76345.0,0.13836362]
[1731186032468,0.55778676,76346.0,76345.0,0.13836362]
[1731186032670,0.55778676,76346.0,76345.0,0.16940483]
[1731186033065,0.55778676,76346.0,76345.0,0.20859422]
[1731186033368,0.55778676,76346.0,76345.0,0.16940483]
[1731186034174,0.55778676,76346.0,76345.0,0.09650321]
[1731186034770,0.55778676,76346.0,76345.0,0.1356926]
[1731186036068,0.55778676,76346.0,76345.0,0.09650321]
[1731186036273,0.55778676,76346.0,76345.0,0.1357055]